[Event "FIDE Women World Rapid 2024"]
[Site "New York"]
[Date "2024.12.27"]
[Round "8.10"]
[White "Kaliakhmet, Elnaz"]
[Black "Tokhirjonova, Gulrukhbegim"]
[Result "0-1"]
[ECO "D38"]
[WhiteElo "2113"]
[BlackElo "2385"]
[Annotator "ChessBase"]
[PlyCount "90"]
[EventDate "2024.12.14"]
[EventType "swiss"]
[EventCountry "USA"]
[SourceTitle "playchess.com"]
[Source "ChessBase"]
[SourceQuality "1"]
[TimeControl "900+10"]

1. d4 {[%emt 0:00:01]} Nf6 {[%emt 0:00:01]} 2. Nf3 {[%emt 0:00:02]} d5 {[%emt 0:00:02]} 3. c4 {[%emt 0:00:01]} e6 {[%emt 0:00:02]} 4. Nc3 {[%emt 0:00:01]} Bb4 {[%emt 0:00:03]} 5. Qa4+ {[%emt 0:00:02]} Nc6 {[%emt 0:00:02]} 6. e3 {[%emt 0:00:01]} O-O {[%emt 0:00:17]} 7. Qc2 {[%emt 0:00:01]} Re8 {[%emt 0:00:16]} 8. Bd2 {[%emt 0:00:16]} a6 {[%emt 0:00:07]} 9. a3 {[%emt 0:00:08]} Bf8 {[%emt 0:00:04]} 10. Bd3 {[%emt 0:00:29]} h6 {[%emt 0:00:38]} 11. O-O {[%emt 0:00:19]} dxc4 {[%emt 0:00:08]} 12. Bxc4 {[%emt 0:00:01]} Bd6 {[%emt 0:00:22]} 13. Rad1 {[%emt 0:02:21]} Qe7 {[%emt 0:00:04]} 14. Ne2 {[%emt 0:07:17]} e5 {[%emt 0:01:08]} 15. dxe5 {[%emt 0:00:07]} Nxe5 {[%emt 0:00:02]} 16. Nxe5 {[%emt 0:00:02]} Qxe5 {[%emt 0:00:05]} 17. Ng3 {[%emt 0:00:02]} Bg4 {[%emt 0:00:51]} 18. Rc1 {[%emt 0:00:14]} b5 {[%emt 0:01:02]} 19. Bc3 {[%emt 0:00:47]} Qg5 {[%emt 0:00:53]} 20. Be2 {[%emt 0:00:19]} Bxe2 {[%emt 0:00:15]} 21. Bxf6 {[%emt 0:00:52]} Qxf6 {[%emt 0:00:09]} 22. Qxe2 {[%emt 0:00:07]} c5 {[%emt 0:00:11]} 23. Rfd1 {[%emt 0:00:44]} c4 {[%emt 0:00:19]} 24. Rd2 {[%emt 0:00:30]} Be5 {[%emt 0:00:12]} 25. Rcd1 {[%emt 0:01:05]} Rad8 {[%emt 0:00:10]} 26. Nf1 {[%emt 0:01:09]} Rxd2 {[%emt 0:00:30]} 27. Rxd2 {[%emt 0:00:01]} Rd8 {[%emt 0:00:10]} 28. Rc2 {[%emt 0:00:09]} Rd3 {[%emt 0:00:09]} 29. f4 {[%emt 0:00:16]} Bc7 {[%emt 0:00:26]} 30. Rd2 {[%emt 0:00:01]} Rb3 {[%emt 0:00:58]} 31. a4 {[%emt 0:00:34]} Bb6 {[%emt 0:00:08]} 32. g3 {[%emt 0:00:52]} Qe6 {[%emt 0:00:26]} 33. Kf2 {[%emt 0:00:05]} bxa4 {[%emt 0:00:38]} 34. Qf3 {[%emt 0:00:16]} a3 {[%emt 0:00:18]} 35. bxa3 {[%emt 0:00:11]} c3 {[%emt 0:00:31]} 36. Re2 {[%emt 0:00:29]} Rb2 {[%emt 0:00:15]} 37. f5 {[%emt 0:00:23]} Qc4 {[%emt 0:00:16]} 38. f6 {[%emt 0:00:19]} gxf6 {[%emt 0:00:17]} 39. Qa8+ {[%emt 0:00:50]} Kg7 {[%emt 0:00:03]} 40. Qf3 {[%emt 0:00:04]} Ba5 {[%emt 0:00:30]} 41. Rxb2 {[%emt 0:00:20]} cxb2 {[%emt 0:00:02]} 42. Qf5 {[%emt 0:00:07]} h5 {[%emt 0:00:39]} 43. Kg1 {[%emt 0:00:13]} Qc1 {[%emt 0:00:17]} 44. Qxh5 {[%emt 0:00:10]} b1=Q {[%emt 0:00:03]} 45. Qg4+ {[%emt 0:00:04]} Qg6 {[%emt 0:00:03]} 0-1

[Event "FIDE Women World Rapid 2024"]
[Site "New York"]
[Date "2024.12.27"]
[Round "8.11"]
[White "Garifullina, Leya"]
[Black "Kashlinskaya, Alina"]
[Result "1-0"]
[ECO "C77"]
[WhiteElo "2451"]
[BlackElo "2493"]
[Annotator "ChessBase"]
[PlyCount "123"]
[EventDate "2024.12.14"]
[EventType "swiss"]
[EventCountry "USA"]
[SourceTitle "playchess.com"]
[Source "ChessBase"]
[SourceQuality "1"]
[TimeControl "900+10"]

1. e4 {[%emt 0:00:04]} e5 {[%emt 0:00:01]} 2. Nf3 {[%emt 0:00:01]} Nc6 {[%emt 0:00:01]} 3. Bb5 {[%emt 0:00:02]} a6 {[%emt 0:00:01]} 4. Ba4 {[%emt 0:00:02]} Nf6 {[%emt 0:00:02]} 5. O-O {[%emt 0:00:02]} Be7 {[%emt 0:00:01]} 6. d3 {[%emt 0:00:20]} b5 {[%emt 0:00:09]} 7. Bb3 {[%emt 0:00:02]} d6 {[%emt 0:00:05]} 8. a3 {[%emt 0:00:01]} O-O {[%emt 0:00:12]} 9. Nc3 {[%emt 0:00:02]} Na5 {[%emt 0:05:13]} 10. Ba2 {[%emt 0:00:02]} c5 {[%emt 0:00:05]} 11. Bg5 {[%emt 0:00:03]} Be6 {[%emt 0:01:54]} 12. Bxf6 {[%emt 0:00:04]} Bxf6 {[%emt 0:00:01]} 13. Nd5 {[%emt 0:00:03]} Nc6 {[%emt 0:00:07]} 14. c3 {[%emt 0:00:20]} Rc8 {[%emt 0:00:46]} 15. a4 {[%emt 0:00:14]} g6 {[%emt 0:00:58]} 16. Nxf6+ {[%emt 0:01:27]} Qxf6 {[%emt 0:00:01]} 17. Bxe6 {[%emt 0:00:02]} Qxe6 {[%emt 0:00:17]} 18. axb5 {[%emt 0:00:03]} axb5 {[%emt 0:00:01]} 19. Ra6 {[%emt 0:00:05]} h6 {[%emt 0:02:04]} 20. h3 {[%emt 0:01:49]} f5 {[%emt 0:00:36]} 21. Rb6 {[%emt 0:00:10]} b4 {[%emt 0:01:34]} 22. Qa4 {[%emt 0:00:18]} fxe4 {[%emt 0:01:07]} 23. dxe4 {[%emt 0:00:03]} d5 {[%emt 0:00:07]} 24. exd5 {[%emt 0:00:16]} Qxd5 {[%emt 0:00:01]} 25. Rd1 {[%emt 0:00:03]} Qe6 {[%emt 0:00:01]} 26. Nxe5 {[%emt 0:01:32]} Qxe5 {[%emt 0:00:01]} 27. Rxc6 {[%emt 0:00:02]} Qf5 {[%emt 0:00:27]} 28. Rd2 {[%emt 0:00:29]} Rce8 {[%emt 0:00:25]} 29. Qd1 {[%emt 0:00:57]} bxc3 {[%emt 0:00:03]} 30. bxc3 {[%emt 0:00:02]} Rf6 {[%emt 0:01:08]} 31. Rxf6 {[%emt 0:02:12]} Qxf6 {[%emt 0:00:01]} 32. Qg4 {[%emt 0:00:14]} Re7 {[%emt 0:00:06]} 33. Rd3 {[%emt 0:01:14]} Kg7 {[%emt 0:00:01]} 34. Rf3 {[%emt 0:00:06]} Qd6 {[%emt 0:00:22]} 35. Qf4 {[%emt 0:00:36]} Re1+ {[%emt 0:00:08]} 36. Kh2 {[%emt 0:00:02]} Qxf4+ {[%emt 0:00:02]} 37. Rxf4 {[%emt 0:00:01]} Rc1 {[%emt 0:00:01]} 38. Rc4 {[%emt 0:00:02]} Kf6 {[%emt 0:00:12]} 39. Rxc5 {[%emt 0:00:02]} g5 {[%emt 0:00:02]} 40. Rc6+ {[%emt 0:00:02]} Kg7 {[%emt 0:00:07]} 41. c4 {[%emt 0:00:14]} h5 {[%emt 0:00:02]} 42. h4 {[%emt 0:00:22]} g4 {[%emt 0:00:06]} 43. c5 {[%emt 0:00:17]} Rc3 {[%emt 0:00:28]} 44. Rc8 {[%emt 0:00:12]} Kh7 {[%emt 0:00:04]} 45. c6 {[%emt 0:00:21]} Kg7 {[%emt 0:00:12]} 46. c7 {[%emt 0:00:01]} g3+ {[%emt 0:00:08]} 47. fxg3 {[%emt 0:00:02]} Kh7 {[%emt 0:00:20]} 48. Kh3 {[%emt 0:00:02]} Kg7 {[%emt 0:00:03]} 49. Rd8 {[%emt 0:00:02]} Rxc7 {[%emt 0:00:04]} 50. g4 {[%emt 0:00:01]} Rc3+ {[%emt 0:00:18]} 51. g3 {[%emt 0:00:01]} hxg4+ {[%emt 0:00:04]} 52. Kxg4 {[%emt 0:00:02]} Rc5 {[%emt 0:00:01]} 53. h5 {[%emt 0:00:16]} Kh6 {[%emt 0:00:02]} 54. Rd6+ {[%emt 0:00:01]} Kg7 {[%emt 0:00:00]} 55. Kh4 {[%emt 0:00:01]} Kh7 {[%emt 0:00:05]} 56. g4 {[%emt 0:00:02]} Kg7 {[%emt 0:00:01]} 57. h6+ {[%emt 0:00:03]} Kh7 {[%emt 0:00:00]} 58. g5 {[%emt 0:00:02]} Rc1 {[%emt 0:00:01]} 59. Rd7+ {[%emt 0:00:10]} Kg8 {[%emt 0:00:22]} 60. Kh5 {[%emt 0:00:46]} Rc6 {[%emt 0:00:01]} 61. Rd8+ {[%emt 0:00:09]} Kh7 {[%emt 0:00:04]} 62. g6+ {[%emt 0:00:02]} 1-0

[Event "FIDE Women World Rapid 2024"]
[Site "New York"]
[Date "2024.12.27"]
[Round "8.11"]
[White "Sliwicka, Alicja"]
[Black "Munguntuul, Batkhuyag"]
[Result "1/2-1/2"]
[ECO "B43"]
[WhiteElo "2346"]
[BlackElo "2342"]
[Annotator "ChessBase"]
[PlyCount "140"]
[EventDate "2024.12.14"]
[EventType "swiss"]
[EventCountry "USA"]
[SourceTitle "playchess.com"]
[Source "ChessBase"]
[SourceQuality "1"]
[TimeControl "900+10"]

1. e4 {[%emt 0:00:01]} c5 {[%emt 0:00:01]} 2. Nf3 {[%emt 0:00:02]} e6 {[%emt 0:00:01]} 3. d4 {[%emt 0:00:02]} cxd4 {[%emt 0:00:01]} 4. Nxd4 {[%emt 0:00:02]} Nc6 {[%emt 0:00:01]} 5. Nc3 {[%emt 0:00:03]} Qc7 {[%emt 0:00:01]} 6. Nb3 {[%emt 0:00:04]} a6 {[%emt 0:00:10]} 7. Bd3 {[%emt 0:00:02]} b5 {[%emt 0:00:08]} 8. O-O {[%emt 0:00:03]} Bb7 {[%emt 0:00:08]} 9. f4 {[%emt 0:00:05]} d6 {[%emt 0:00:07]} 10. Bd2 {[%emt 0:00:03]} Nf6 {[%emt 0:00:02]} 11. Qf3 {[%emt 0:00:11]} Be7 {[%emt 0:00:03]} 12. Rae1 {[%emt 0:00:02]} O-O {[%emt 0:00:13]} 13. Qh3 {[%emt 0:00:02]} b4 {[%emt 0:01:17]} 14. Ne2 {[%emt 0:00:30]} e5 {[%emt 0:00:10]} 15. Ng3 {[%emt 0:00:03]} Bc8 {[%emt 0:02:50]} 16. Nf5 {[%emt 0:00:03]} Bxf5 {[%emt 0:00:25]} 17. Qxf5 {[%emt 0:00:55]} a5 {[%emt 0:00:14]} 18. fxe5 {[%emt 0:01:17]} dxe5 {[%emt 0:00:02]} 19. Be3 {[%emt 0:00:06]} Rfd8 {[%emt 0:01:46]} 20. Nd2 {[%emt 0:00:27]} g6 {[%emt 0:04:13]} 21. Qf2 {[%emt 0:00:29]} Nd4 {[%emt 0:00:11]} 22. Nc4 {[%emt 0:01:52]} Rf8 {[%emt 0:03:06]} 23. h3 {[%emt 0:02:18]} Ne6 {[%emt 0:00:34]} 24. Qg3 {[%emt 0:00:14]} Nd7 {[%emt 0:00:57]} 25. Bh6 {[%emt 0:00:04]} Rfe8 {[%emt 0:00:40]} 26. Kh1 {[%emt 0:00:24]} Bf8 {[%emt 0:00:21]} 27. Bc1 {[%emt 0:00:20]} Bg7 {[%emt 0:00:10]} 28. Ne3 {[%emt 0:00:06]} Nf4 {[%emt 0:00:07]} 29. Bc4 {[%emt 0:00:16]} Nb6 {[%emt 0:00:01]} 30. Bb5 {[%emt 0:00:14]} Red8 {[%emt 0:00:04]} 31. Ng4 {[%emt 0:00:57]} h5 {[%emt 0:00:21]} 32. Ne3 {[%emt 0:00:37]} Qc5 {[%emt 0:00:02]} 33. Be2 {[%emt 0:00:12]} Rd6 {[%emt 0:00:25]} 34. b3 {[%emt 0:00:23]} Rad8 {[%emt 0:00:04]} 35. Bc4 {[%emt 0:00:05]} R8d7 {[%emt 0:00:43]} 36. Qg5 {[%emt 0:00:12]} Bf6 {[%emt 0:00:08]} 37. Qg3 {[%emt 0:00:03]} Kh7 {[%emt 0:00:07]} 38. Qf3 {[%emt 0:00:30]} Bg7 {[%emt 0:00:15]} 39. Kh2 {[%emt 0:00:06]} Ne6 {[%emt 0:00:21]} 40. Rd1 {[%emt 0:01:58]} Rxd1 {[%emt 0:00:25]} 41. Rxd1 {[%emt 0:00:02]} Ng5 {[%emt 0:00:00]} 42. Qe2 {[%emt 0:00:40]} Rxd1 {[%emt 0:00:11]} 43. Nxd1 {[%emt 0:00:03]} Nxc4 {[%emt 0:00:02]} 44. Bxg5 {[%emt 0:00:07]} Nd6 {[%emt 0:00:07]} 45. Be7 {[%emt 0:01:23]} Qc6 {[%emt 0:00:01]} 46. Bxd6 {[%emt 0:00:55]} Qxd6 {[%emt 0:00:01]} 47. Qd3 {[%emt 0:00:02]} Qc5 {[%emt 0:01:05]} 48. Ne3 {[%emt 0:00:03]} Bh6 {[%emt 0:00:01]} 49. Nd5 {[%emt 0:00:02]} Bf4+ {[%emt 0:00:32]} 50. Nxf4 {[%emt 0:00:36]} exf4 {[%emt 0:00:01]} 51. Qf3 {[%emt 0:00:48]} Qe5 {[%emt 0:00:12]} 52. Kh1 {[%emt 0:00:22]} Kg7 {[%emt 0:00:05]} 53. Qd3 {[%emt 0:00:30]} g5 {[%emt 0:00:12]} 54. Kg1 {[%emt 0:00:06]} g4 {[%emt 0:00:02]} 55. Kf2 {[%emt 0:00:07]} Qc5+ {[%emt 0:00:09]} 56. Kf1 {[%emt 0:00:06]} g3 {[%emt 0:00:05]} 57. Qd2 {[%emt 0:00:20]} Qe5 {[%emt 0:00:10]} 58. Qd3 {[%emt 0:00:19]} Qa1+ {[%emt 0:00:29]} 59. Ke2 {[%emt 0:00:01]} Qg1 {[%emt 0:00:03]} 60. Qf3 {[%emt 0:00:02]} Qc1 {[%emt 0:00:02]} 61. Kd3 {[%emt 0:00:08]} Kg6 {[%emt 0:00:04]} 62. h4 {[%emt 0:00:50]} Qb2 {[%emt 0:00:01]} 63. Qxf4 {[%emt 0:01:00]} Qc3+ {[%emt 0:00:01]} 64. Ke2 {[%emt 0:00:01]} Qxc2+ {[%emt 0:00:02]} 65. Ke3 {[%emt 0:00:17]} Qc5+ {[%emt 0:00:23]} 66. Ke2 {[%emt 0:00:16]} Qc2+ {[%emt 0:00:02]} 67. Ke3 {[%emt 0:00:13]} Qc3+ {[%emt 0:00:12]} 68. Ke2 {[%emt 0:00:03]} Qc2+ {[%emt 0:00:07]} 69. Ke3 {[%emt 0:00:02]} Qc3+ {[%emt 0:00:20]} 70. Ke2 {[%emt 0:00:01]} Qc2+ {[%emt 0:00:01]} 1/2-1/2

[Event "FIDE Women World Rapid 2024"]
[Site "New York"]
[Date "2024.12.27"]
[Round "8.12"]
[White "Bodnaruk, Anastasia"]
[Black "Vaishali, Rameshbabu"]
[Result "1-0"]
[ECO "C72"]
[WhiteElo "2333"]
[BlackElo "2476"]
[Annotator "ChessBase"]
[PlyCount "69"]
[EventDate "2024.12.14"]
[EventType "swiss"]
[EventCountry "USA"]
[SourceTitle "playchess.com"]
[Source "ChessBase"]
[SourceQuality "1"]
[TimeControl "900+10"]

1. e4 {[%emt 0:00:01]} e5 {[%emt 0:00:01]} 2. Nf3 {[%emt 0:00:01]} Nc6 {[%emt 0:00:02]} 3. Bb5 {[%emt 0:00:02]} a6 {[%emt 0:00:02]} 4. Ba4 {[%emt 0:00:01]} d6 {[%emt 0:00:02]} 5. O-O {[%emt 0:00:08]} Bd7 {[%emt 0:00:02]} 6. d4 {[%emt 0:00:42]} exd4 {[%emt 0:01:15]} 7. Bxc6 {[%emt 0:00:32]} bxc6 {[%emt 0:00:06]} 8. Qxd4 {[%emt 0:00:32]} Nf6 {[%emt 0:03:16]} 9. h3 {[%emt 0:01:03]} Be7 {[%emt 0:00:48]} 10. c4 {[%emt 0:00:14]} O-O {[%emt 0:00:11]} 11. Nc3 {[%emt 0:00:02]} c5 {[%emt 0:00:25]} 12. Qd3 {[%emt 0:00:14]} Bc6 {[%emt 0:00:58]} 13. Nh2 {[%emt 0:02:41]} Nd7 {[%emt 0:00:47]} 14. Ng4 {[%emt 0:00:17]} Bf6 {[%emt 0:00:36]} 15. Nxf6+ {[%emt 0:03:23]} Qxf6 {[%emt 0:00:05]} 16. Bd2 {[%emt 0:00:14]} Rae8 {[%emt 0:00:59]} 17. Rae1 {[%emt 0:00:11]} Qg6 {[%emt 0:01:49]} 18. Nd5 {[%emt 0:01:33]} Nb6 {[%emt 0:03:58]} 19. Re3 {[%emt 0:02:54]} Nxd5 {[%emt 0:02:27]} 20. exd5 {[%emt 0:00:01]} Rxe3 {[%emt 0:00:19]} 21. Qxg6 {[%emt 0:01:31]} hxg6 {[%emt 0:00:02]} 22. fxe3 {[%emt 0:00:47]} Bb7 {[%emt 0:00:21]} 23. Ba5 {[%emt 0:00:44]} Rc8 {[%emt 0:00:15]} 24. Rd1 {[%emt 0:00:18]} c6 {[%emt 0:00:07]} 25. e4 {[%emt 0:00:40]} cxd5 {[%emt 0:00:08]} 26. exd5 {[%emt 0:00:02]} Kf8 {[%emt 0:00:15]} 27. Rd3 {[%emt 0:00:17]} Ba8 {[%emt 0:00:23]} 28. Rb3 {[%emt 0:00:11]} Ke7 {[%emt 0:00:00]} 29. Rb6 {[%emt 0:00:09]} f5 {[%emt 0:00:08]} 30. Bd2 {[%emt 0:00:18]} Rc7 {[%emt 0:00:10]} 31. Bg5+ {[%emt 0:00:09]} Kf7 {[%emt 0:00:10]} 32. Rxd6 {[%emt 0:00:04]} Bb7 {[%emt 0:00:01]} 33. Kf2 {[%emt 0:00:18]} Bc8 {[%emt 0:00:07]} 34. b3 {[%emt 0:00:14]} Bb7 {[%emt 0:00:16]} 35. Bd8 {[%emt 0:00:10]} 1-0

[Event "FIDE Women World Rapid 2024"]
[Site "New York"]
[Date "2024.12.27"]
[Round "8.12"]
[White "Belenkaya, Dina"]
[Black "Skripchenko, Almira"]
[Result "1-0"]
[ECO "D26"]
[WhiteElo "2155"]
[BlackElo "2364"]
[Annotator "ChessBase"]
[PlyCount "88"]
[EventDate "2024.12.14"]
[EventType "swiss"]
[EventCountry "USA"]
[SourceTitle "playchess.com"]
[Source "ChessBase"]
[SourceQuality "1"]
[TimeControl "900+10"]

1. d4 {[%emt 0:00:04]} d5 {[%emt 0:00:04]} 2. c4 {[%emt 0:00:03]} dxc4 {[%emt 0:00:06]} 3. Nf3 {[%emt 0:00:11]} Nf6 {[%emt 0:00:06]} 4. e3 {[%emt 0:00:02]} e6 {[%emt 0:00:02]} 5. Bxc4 {[%emt 0:00:02]} a6 {[%emt 0:00:03]} 6. O-O {[%emt 0:00:03]} b6 {[%emt 0:00:26]} 7. Qe2 {[%emt 0:00:31]} Bb7 {[%emt 0:00:01]} 8. Rd1 {[%emt 0:00:03]} Nbd7 {[%emt 0:00:03]} 9. Nc3 {[%emt 0:00:23]} c5 {[%emt 0:00:30]} 10. d5 {[%emt 0:02:56]} exd5 {[%emt 0:00:10]} 11. Nxd5 {[%emt 0:00:09]} Nxd5 {[%emt 0:00:02]} 12. Bxd5 {[%emt 0:00:04]} Bxd5 {[%emt 0:00:09]} 13. Rxd5 {[%emt 0:00:02]} Qc7 {[%emt 0:00:02]} 14. e4 {[%emt 0:00:30]} Be7 {[%emt 0:00:03]} 15. Bg5 {[%emt 0:04:49]} Bxg5 {[%emt 0:00:15]} 16. Nxg5 {[%emt 0:00:11]} O-O {[%emt 0:02:01]} 17. e5 {[%emt 0:00:25]} h6 {[%emt 0:00:50]} 18. Nf3 {[%emt 0:03:02]} Rfe8 {[%emt 0:01:02]} 19. Rad1 {[%emt 0:00:06]} Nf8 {[%emt 0:00:02]} 20. Qd3 {[%emt 0:00:15]} b5 {[%emt 0:01:18]} 21. Rd6 {[%emt 0:00:23]} c4 {[%emt 0:01:02]} 22. Qd5 {[%emt 0:00:02]} Qa5 {[%emt 0:00:17]} 23. a3 {[%emt 0:01:20]} c3 {[%emt 0:03:59]} 24. bxc3 {[%emt 0:00:13]} Qxc3 {[%emt 0:00:09]} 25. Qa2 {[%emt 0:01:59]} Ne6 {[%emt 0:00:53]} 26. R6d3 {[%emt 0:00:21]} Qc6 {[%emt 0:00:15]} 27. Qd2 {[%emt 0:00:23]} Rad8 {[%emt 0:00:44]} 28. Rd6 {[%emt 0:00:01]} Qc5 {[%emt 0:02:21]} 29. Qb4 {[%emt 0:00:15]} Qc2 {[%emt 0:00:10]} 30. Qe1 {[%emt 0:00:36]} Qa4 {[%emt 0:00:09]} 31. R1d3 {[%emt 0:00:31]} Rc8 {[%emt 0:00:09]} 32. g3 {[%emt 0:00:10]} Rc4 {[%emt 0:00:25]} 33. Qd1 {[%emt 0:00:15]} Rec8 {[%emt 0:01:45]} 34. Kg2 {[%emt 0:00:10]} Qxd1 {[%emt 0:00:22]} 35. Rxd1 {[%emt 0:00:01]} Ra4 {[%emt 0:00:03]} 36. R1d3 {[%emt 0:00:01]} Rcc4 {[%emt 0:00:43]} 37. Rb6 {[%emt 0:00:07]} g5 {[%emt 0:00:22]} 38. h3 {[%emt 0:00:04]} Kg7 {[%emt 0:00:13]} 39. Nd2 {[%emt 0:00:11]} Rd4 {[%emt 0:00:06]} 40. Rxd4 {[%emt 0:00:04]} Rxd4 {[%emt 0:00:09]} 41. Nb1 {[%emt 0:00:43]} Rd1 {[%emt 0:00:06]} 42. Nc3 {[%emt 0:00:04]} Rd3 {[%emt 0:00:04]} 43. Rc6 {[%emt 0:00:04]} Nd4 {[%emt 0:00:20]} 44. Rc8 {[%emt 0:00:04]} Ne6 {[%emt 0:00:29]} 1-0

[Event "FIDE Women World Rapid 2024"]
[Site "New York"]
[Date "2024.12.27"]
[Round "8.13"]
[White "Muzychuk, Mariya"]
[Black "Mou, Iris"]
[Result "1-0"]
[ECO "B01"]
[WhiteElo "2490"]
[BlackElo "2226"]
[Annotator "ChessBase"]
[PlyCount "143"]
[EventDate "2024.12.14"]
[EventType "swiss"]
[EventCountry "USA"]
[SourceTitle "playchess.com"]
[Source "ChessBase"]
[SourceQuality "1"]
[TimeControl "900+10"]

1. e4 {[%emt 0:00:04]} d5 {[%emt 0:00:03]} 2. exd5 {[%emt 0:00:00]} Nf6 {[%emt 0:00:02]} 3. Nf3 {[%emt 0:00:07]} Nxd5 {[%emt 0:02:17]} 4. d4 {[%emt 0:00:01]} Bg4 {[%emt 0:00:12]} 5. Be2 {[%emt 0:00:13]} Nc6 {[%emt 0:00:41]} 6. O-O {[%emt 0:01:03]} e6 {[%emt 0:00:03]} 7. h3 {[%emt 0:01:00]} Bh5 {[%emt 0:00:12]} 8. c3 {[%emt 0:00:50]} Bd6 {[%emt 0:00:46]} 9. Ne5 {[%emt 0:01:04]} Bxe2 {[%emt 0:01:39]} 10. Qxe2 {[%emt 0:00:02]} Nce7 {[%emt 0:01:21]} 11. Qb5+ {[%emt 0:03:03]} c6 {[%emt 0:00:40]} 12. Qxb7 {[%emt 0:00:03]} Bxe5 {[%emt 0:02:33]} 13. dxe5 {[%emt 0:00:02]} Nb6 {[%emt 0:00:38]} 14. Bg5 {[%emt 0:01:02]} Qd7 {[%emt 0:01:05]} 15. Qxd7+ {[%emt 0:00:49]} Nxd7 {[%emt 0:00:02]} 16. Bxe7 {[%emt 0:00:27]} Kxe7 {[%emt 0:00:02]} 17. f4 {[%emt 0:00:00]} Rab8 {[%emt 0:00:15]} 18. b3 {[%emt 0:00:27]} Nc5 {[%emt 0:00:10]} 19. Nd2 {[%emt 0:00:59]} Rhd8 {[%emt 0:00:13]} 20. Nc4 {[%emt 0:00:06]} Rd3 {[%emt 0:00:21]} 21. Nd6 {[%emt 0:01:40]} Nb7 {[%emt 0:01:04]} 22. Ne4 {[%emt 0:00:57]} Rbd8 {[%emt 0:01:13]} 23. Rae1 {[%emt 0:00:01]} f5 {[%emt 0:00:36]} 24. exf6+ {[%emt 0:00:22]} gxf6 {[%emt 0:00:02]} 25. Re2 {[%emt 0:00:31]} R8d5 {[%emt 0:01:00]} 26. Rfe1 {[%emt 0:00:11]} Rd1 {[%emt 0:00:25]} 27. Kf2 {[%emt 0:00:24]} Rxe1 {[%emt 0:00:16]} 28. Kxe1 {[%emt 0:01:03]} Rf5 {[%emt 0:00:38]} 29. g3 {[%emt 0:00:13]} Rh5 {[%emt 0:00:22]} 30. h4 {[%emt 0:00:09]} Rd5 {[%emt 0:00:10]} 31. Rd2 {[%emt 0:00:18]} h5 {[%emt 0:00:28]} 32. Ke2 {[%emt 0:00:06]} Nd8 {[%emt 0:00:23]} 33. c4 {[%emt 0:00:10]} Ra5 {[%emt 0:00:19]} 34. Nd6 {[%emt 0:01:06]} Ra3 {[%emt 0:00:24]} 35. Ke3 {[%emt 0:00:11]} Ra5 {[%emt 0:00:02]} 36. a4 {[%emt 0:01:05]} Ra6 {[%emt 0:00:08]} 37. Rd3 {[%emt 0:00:10]} Ra5 {[%emt 0:00:02]} 38. Kd2 {[%emt 0:00:14]} Ra6 {[%emt 0:00:12]} 39. Kc3 {[%emt 0:00:04]} c5 {[%emt 0:00:07]} 40. Ne4 {[%emt 0:00:08]} Nb7 {[%emt 0:00:12]} 41. Re3 {[%emt 0:01:10]} Kf7 {[%emt 0:00:23]} 42. Nf2 {[%emt 0:00:10]} Nd6 {[%emt 0:00:09]} 43. g4 {[%emt 0:00:16]} hxg4 {[%emt 0:00:14]} 44. Nxg4 {[%emt 0:00:01]} Nf5 {[%emt 0:00:04]} 45. Rh3 {[%emt 0:00:07]} Rb6 {[%emt 0:00:12]} 46. h5 {[%emt 0:00:10]} Rb8 {[%emt 0:00:05]} 47. Rd3 {[%emt 0:00:11]} Ke7 {[%emt 0:00:11]} 48. Nf2 {[%emt 0:00:22]} Nd4 {[%emt 0:00:16]} 49. Kb2 {[%emt 0:00:00]} Ne2 {[%emt 0:00:11]} 50. f5 {[%emt 0:00:17]} Nf4 {[%emt 0:00:07]} 51. Re3 {[%emt 0:00:05]} e5 {[%emt 0:00:04]} 52. Ne4 {[%emt 0:00:14]} Rc8 {[%emt 0:00:11]} 53. h6 {[%emt 0:00:05]} a5 {[%emt 0:00:15]} 54. Rg3 {[%emt 0:00:04]} Rh8 {[%emt 0:00:10]} 55. Rg7+ {[%emt 0:00:10]} Kf8 {[%emt 0:00:02]} 56. Ra7 {[%emt 0:00:16]} Rxh6 {[%emt 0:00:02]} 57. Nxc5 {[%emt 0:00:00]} Rh2+ {[%emt 0:00:06]} 58. Ka3 {[%emt 0:00:10]} Re2 {[%emt 0:00:22]} 59. Nd7+ {[%emt 0:00:12]} Ke8 {[%emt 0:00:17]} 60. Nxf6+ {[%emt 0:00:04]} Kf8 {[%emt 0:00:00]} 61. Rxa5 {[%emt 0:00:23]} e4 {[%emt 0:00:15]} 62. Re5 {[%emt 0:00:09]} e3 {[%emt 0:00:07]} 63. Nd5 {[%emt 0:00:08]} Ng2 {[%emt 0:00:11]} 64. a5 {[%emt 0:00:11]} Re1 {[%emt 0:00:13]} 65. Kb4 {[%emt 0:00:01]} e2 {[%emt 0:00:23]} 66. f6 {[%emt 0:00:10]} Nh4 {[%emt 0:00:07]} 67. Nc3 {[%emt 0:00:11]} Kf7 {[%emt 0:00:05]} 68. Rxe2 {[%emt 0:00:02]} Rxe2 {[%emt 0:00:02]} 69. Nxe2 {[%emt 0:00:01]} Kxf6 {[%emt 0:00:01]} 70. a6 {[%emt 0:00:02]} Nf5 {[%emt 0:00:02]} 71. a7 {[%emt 0:00:04]} Nd6 {[%emt 0:00:01]} 72. a8=Q {[%emt 0:00:07]} 1-0